Department Family,Entity,Payment Date,Expense Type,Expense Area,Supplier,System Transaction Number,Amount
MOJ,NOMS,01/08/2010,Rates and Ground Rents,Estates Capacity,DURHAM COUNTY COUNCIL,3472467,28152.00
MOJ,NOMS,01/08/2010,Rates and Ground Rents,Estates Capacity,DURHAM CITY COUNCIL,3472465,45559.36
MOJ,NOMS,11/08/2010,Rates and Ground Rents,Estates Capacity,WARRINGTON BOROUGH COUNCIL,3472333,27945.00
MOJ,NOMS,11/08/2010,Rates and Ground Rents,Estates Capacity,KINGSTON-UPON-HULL CITY COUNCIL,3472429,29588.58
MOJ,NOMS,11/08/2010,Rates and Ground Rents,Estates Capacity,CITY OF WAKEFIELD,3472331,36939.35
MOJ,NOMS,11/08/2010,Rates and Ground Rents,Estates Capacity,FENLAND DISTRICT COUNCIL,3472433,44298.00
MOJ,NOMS,23/08/2010,Rates and Ground Rents,Estates Capacity,MEDWAY COUNCIL,3543204,53216.15
MOJ,NOMS,27/08/2010,Rates and Ground Rents,Estates Capacity,MERSEY CARE N H S TRUST,1938075,625000.00
MOJ,NOMS,29/08/2010,Rates and Ground Rents,Estates Capacity,BRIDGEND COUNTY BOROUGH COUNCIL,3495009,27607.50
MOJ,NOMS,29/08/2010,Rates and Ground Rents,Estates Capacity,CHORLEY BOROUGH COUNCIL,3495010,27738.00
MOJ,NOMS,29/08/2010,Rates and Ground Rents,Estates Capacity,WIGAN COUNCIL,3532826,28152.00
MOJ,NOMS,29/08/2010,Rates and Ground Rents,Estates Capacity,ST EDMUNDSBURY BOROUGH COUNCIL,3472302,28976.84
MOJ,NOMS,29/08/2010,Rates and Ground Rents,Estates Capacity,SALFORD CITY COUNCIL,3528179,29178.77
MOJ,NOMS,29/08/2010,Rates and Ground Rents,Estates Capacity,RUTLAND DISTRICT COUNCIL,3472408,29187.00
MOJ,NOMS,29/08/2010,Rates and Ground Rents,Estates Capacity,WYCHAVON DISTRICT COUNCIL,3472351,31257.00
MOJ,NOMS,29/08/2010,Rates and Ground Rents,Estates Capacity,EAST STAFFORDSHIRE BOROUGH COUNCIL,3472472,31878.00
MOJ,NOMS,29/08/2010,Rates and Ground Rents,Estates Capacity,DONCASTER MBC,3472424,32590.46
MOJ,NOMS,29/08/2010,Rates and Ground Rents,Estates Capacity,SWALE BOROUGH COUNCIL,3472345,32913.00
MOJ,NOMS,29/08/2010,Rates and Ground Rents,Estates Capacity,STOCKTON-ON-TEES BOROUGH COUNCIL,3472303,33682.05
MOJ,NOMS,29/08/2010,Rates and Ground Rents,Estates Capacity,SURREY HEATH BOROUGH COUNCIL,3472342,34983.00
MOJ,NOMS,29/08/2010,Rates and Ground Rents,Estates Capacity,BRECKLAND DISTRICT COUNCIL,3472479,35397.00
MOJ,NOMS,29/08/2010,Rates and Ground Rents,Estates Capacity,CHORLEY BOROUGH COUNCIL,3495011,35886.25
MOJ,NOMS,29/08/2010,Rates and Ground Rents,Estates Capacity,DACORUM BOROUGH COUNCIL,3472419,36564.76
MOJ,NOMS,29/08/2010,Rates and Ground Rents,Estates Capacity,SPELTHORNE BOROUGH COUNCIL,3472297,36914.85
MOJ,NOMS,29/08/2010,Rates and Ground Rents,Estates Capacity,BIRMINGHAM CITY COUNCIL,3508297,37053.00
MOJ,NOMS,29/08/2010,Rates and Ground Rents,Estates Capacity,BROMSGROVE DISTRICT COUNCIL,3472765,37467.00
MOJ,NOMS,29/08/2010,Rates and Ground Rents,Estates Capacity,LONDON BOROUGH OF HOUNSLOW,3472763,38843.00
MOJ,NOMS,29/08/2010,Rates and Ground Rents,Estates Capacity,WANDSWORTH BOROUGH COUNCIL,3472332,38843.00
MOJ,NOMS,29/08/2010,Rates and Ground Rents,Estates Capacity,EAST RIDING OF YORKSHIRE COUNCIL,3485218,39330.00
MOJ,NOMS,29/08/2010,Rates and Ground Rents,Estates Capacity,LANCASTER CITY COUNCIL,3495020,39537.00
MOJ,NOMS,29/08/2010,Rates and Ground Rents,Estates Capacity,LIVERPOOL CITY COUNCIL,3475192,40158.00
MOJ,NOMS,29/08/2010,Rates and Ground Rents,Estates Capacity,LONDON BOROUGH OF ISLINGTON.,3472762,42315.00
MOJ,NOMS,29/08/2010,Rates and Ground Rents,Estates Capacity,DONCASTER MET DIST COUNCIL,3472423,42927.39
MOJ,NOMS,29/08/2010,Rates and Ground Rents,Estates Capacity,LIVERPOOL CITY COUNCIL,3478615,43056.00
MOJ,NOMS,29/08/2010,Rates and Ground Rents,Estates Capacity,PETERBOROUGH CITY COUNCIL,3472305,43470.00
MOJ,NOMS,29/08/2010,Rates and Ground Rents,Estates Capacity,SWALE BOROUGH COUNCIL,3472344,44712.00
MOJ,NOMS,29/08/2010,Rates and Ground Rents,Estates Capacity,HUNTINGDONSHIRE DISTRICT COUNCIL,3495015,46782.00
MOJ,NOMS,29/08/2010,Rates and Ground Rents,Estates Capacity,NORTHUMBERLAND COUNTY COUNCIL,3472413,50508.00
MOJ,NOMS,29/08/2010,Rates and Ground Rents,Estates Capacity,MANCHESTER CITY COUNCIL,3518493,51316.40
MOJ,NOMS,29/08/2010,Rates and Ground Rents,Estates Capacity,REIGATE & BANSTEAD BOROUGH COUNCIL,3508304,54234.00
MOJ,NOMS,29/08/2010,Rates and Ground Rents,Estates Capacity,CHERWELL DISTRICT COUNCIL,3472451,55476.00
MOJ,NOMS,29/08/2010,Rates and Ground Rents,Estates Capacity,LB OF HAMMERSMITH AND FULHAM,3495013,57722.00
MOJ,NOMS,29/08/2010,Rates and Ground Rents,Estates Capacity,MILTON KEYNES COUNCIL,3472363,62100.00
MOJ,NOMS,29/08/2010,Rates and Ground Rents,Estates Capacity,GREENWICH COUNCIL,3472444,86366.00
MOJ,NOMS,02/08/2010,Electricity,Ranby,EDF ENERGY,3642442,-30899.10
MOJ,NOMS,02/08/2010,Prison Shop Sales,Woodhill,BT PAYPHONES,,-27318.75
MOJ,NOMS,02/08/2010,Contracted-out Other Services,Gartree,COFATHEC ENERGY PFI LTD,3642571,28420.25
MOJ,NOMS,02/08/2010,WIP - Professional Fees,Estates Capacity,JACOBS ENGINEERING UK,3639076,30138.78
MOJ,NOMS,02/08/2010,Water and Sewage,Liverpool,UNITED UTILITIES WATER PLC,3642517,30678.41
MOJ,NOMS,02/08/2010,Electricity,Ranby,EDF ENERGY,3642443,30744.54
MOJ,NOMS,02/08/2010,Water and Sewage,Manchester,UNITED UTILITIES WATER PLC,3642514,33370.51
MOJ,NOMS,02/08/2010,Contracted-out Probation Trusts,Glen Parva,LEICESTERSHIRE&RUTLAND PROBATION TRUST,3642404,33717.92
MOJ,NOMS,02/08/2010,Contract IT Maintenance,NOMS ICT,HP ENTERPRISE SERVICES UK LTD,3606555,34984.01
MOJ,NOMS,02/08/2010,Professional Advice,DO NOT USE Commercial & Competitions Unit,EVERSHEDS LLP,3632423,39685.00
MOJ,NOMS,02/08/2010,Contracted-out Probation Trusts,Whatton,NOTTINGHAM PROBATION COMMITTEE,3642280,39781.21
MOJ,NOMS,02/08/2010,"Books, Stationery & IT Consumables",Offender Employment Skills & Services Group,BURLINGTON UNIFORMS LTD,3638737,42539.69
MOJ,NOMS,02/08/2010,Contract IT Maintenance,Business and Strategic Planning,HP ENTERPRISE SERVICES UK LTD,3608090,55984.59
MOJ,NOMS,02/08/2010,Contracted-out Probation Boards,London DOMS Office,LONDON PROBATION TRUST,3640754,56829.00
MOJ,NOMS,02/08/2010,Contract IT Maintenance,NOMS ICT,HP ENTERPRISE SERVICES UK LTD,3598409,69820.15
MOJ,NOMS,02/08/2010,Meetings/Conf  Refreshments,MOJ Shared Services NOMS Delivery,ESS SUPPORT SERVICES WORLDWIDE,3642523,70710.55
MOJ,NOMS,02/08/2010,WIP - Acquisitions,Estates Capacity,ISG REGIONS LTD,3641885,78173.53
MOJ,NOMS,02/08/2010,WIP - Professional Fees,Estates Capacity,JACOBS ENGINEERING UK,3638585,113133.06
MOJ,NOMS,02/08/2010,Contracted-out Resettlement Services,NOMS CFO,A4E CONSULTING LTD,3641420,115896.32
MOJ,NOMS,02/08/2010,Contracted-out Building Maintenance,Brixton,CARILLION CONSTRUCTION LTD,3624429,191192.29
MOJ,NOMS,02/08/2010,WIP - Acquisitions,MoJ ICT,HP ENTERPRISE SERVICES UK LTD,3642707,499247.91
MOJ,NOMS,02/08/2010,Contracted-out Probation Trusts,Northamptonshire Probation Trust,NORTHAMPTONSHIRE PROBATION TRUST,3639075,763083.00
MOJ,NOMS,03/08/2010,Water and Sewage,Belmarsh,THAMES WATER UTILITIES LTD,,-33588.17
MOJ,NOMS,03/08/2010,Contracted-out Probation Trusts,Rehabilitation Services Group,LEICESTERSHIRE&RUTLAND PROBATION TRUST,3642722,25057.05
MOJ,NOMS,03/08/2010,Contracted-out Probation Trusts,Rehabilitation Services Group,LEICESTERSHIRE&RUTLAND PROBATION TRUST,3642720,25528.38
MOJ,NOMS,03/08/2010,Counselling & Advisory Costs,Exeter,EXETER DRUGS PROJECT,3641654,26039.00
MOJ,NOMS,03/08/2010,Water and Sewage,Risley,UNITED UTILITIES WATER PLC,3643943,27660.71
MOJ,NOMS,03/08/2010,Contracted-out Probation Boards,Styal,CHESHIRE PROBATION TRUST,3642259,27869.99
MOJ,NOMS,03/08/2010,Water and Sewage,Belmarsh,THAMES WATER UTILITIES LTD,3643825,27893.94
MOJ,NOMS,03/08/2010,Other - Acquisitions,Lancaster Castle,IVECO LIMITED,3633021,31734.40
MOJ,NOMS,03/08/2010,Water and Sewage,Belmarsh,THAMES WATER UTILITIES LTD,3606432,33268.43
MOJ,NOMS,03/08/2010,WIP - Acquisitions,MoJ ICT,HP ENTERPRISE SERVICES UK LTD,3643067,37081.20
MOJ,NOMS,03/08/2010,Contracted-out Resettlement Services,ROM - Yorkshire & Humberside,SHELTER,3642791,37711.54
MOJ,NOMS,03/08/2010,Contracted-out Probation Boards,Nottingham,NOTTINGHAM PROBATION COMMITTEE,3641814,40040.78
MOJ,NOMS,03/08/2010,Professional Advice,Askham Grange,BARNARDO'S,3618560,45142.25
MOJ,NOMS,03/08/2010,WIP - Acquisitions,MoJ ICT,HP ENTERPRISE SERVICES UK LTD,3643077,54877.00
MOJ,NOMS,03/08/2010,WIP - Acquisitions,MoJ ICT,HP ENTERPRISE SERVICES UK LTD,3643074,64350.46
MOJ,NOMS,03/08/2010,WIP - Acquisitions,Estates Capacity,CRISPIN & BORST LTD,3625483,71912.81
MOJ,NOMS,03/08/2010,Specialist Contractors,Estates Capacity,LAMBERT SMITH HAMPTON GROUP LTD,3604291,74359.41
MOJ,NOMS,03/08/2010,WIP - Acquisitions,Estates Capacity,WATES CONSTRUCTION LTD,3642879,80727.20
MOJ,NOMS,03/08/2010,Counselling & Advisory Costs,ROM - Yorkshire & Humberside,LIFELINE PROJECT,3642997,155934.36
MOJ,NOMS,03/08/2010,WIP - Acquisitions,Estates Capacity,HENRY BOOT CONSTRUCTION (U K) LTD,3620040,190917.53
MOJ,NOMS,03/08/2010,VISA Costs,MOJ Shared Services NOMS Delivery,COMPANY BARCLAYCARD,3643886,1755124.47
MOJ,NOMS,03/08/2010,WIP - Acquisitions,Estates Capacity,BRIDGEND CUSTODIAL SERVICES LTD,3643649,2873213.40
MOJ,NOMS,04/08/2010,Probation - Loan Charges,Director of Probation's Office,LOCAL COUNCILS LOAN CHARGES,3646015,25680.00
MOJ,NOMS,04/08/2010,"New structural works, structural maintenance and equipment",Askham Grange,G WILKINSON CONSTRUCTION LTD,3593434,25806.76
MOJ,NOMS,04/08/2010,Probation - Loan Charges,Director of Probation's Office,LOCAL COUNCILS LOAN CHARGES,3646032,26111.22
MOJ,NOMS,04/08/2010,Probation - Loan Charges,Director of Probation's Office,LOCAL COUNCILS LOAN CHARGES,3646011,26413.00
MOJ,NOMS,04/08/2010,Probation - Loan Charges,Director of Probation's Office,LOCAL COUNCILS LOAN CHARGES,3645980,26569.44
MOJ,NOMS,04/08/2010,Probation - Loan Charges,Director of Probation's Office,LOCAL COUNCILS LOAN CHARGES,3646008,26573.00
MOJ,NOMS,04/08/2010,Probation - Loan Charges,Director of Probation's Office,LOCAL COUNCILS LOAN CHARGES,3645987,26632.94
MOJ,NOMS,04/08/2010,Probation - Loan Charges,Director of Probation's Office,LOCAL COUNCILS LOAN CHARGES,3646031,27284.00
MOJ,NOMS,04/08/2010,Resource Grants / Grant-in-Aid,ROM - Yorkshire & Humberside,TOGETHER WOMEN PROJECTS (YORKSHIRE AND HUMBERSIDE),3632947,27500.00
MOJ,NOMS,04/08/2010,Resource Grants / Grant-in-Aid,ROM - Yorkshire & Humberside,TOGETHER WOMEN PROJECTS (YORKSHIRE AND HUMBERSIDE),3632945,27500.00
MOJ,NOMS,04/08/2010,Probation - Loan Charges,Director of Probation's Office,LOCAL COUNCILS LOAN CHARGES,3645993,28517.87
MOJ,NOMS,04/08/2010,Probation - Loan Charges,Director of Probation's Office,LOCAL COUNCILS LOAN CHARGES,3645976,29682.00
MOJ,NOMS,04/08/2010,Contracted-out Probation Trusts,Channings Wood,DEVON AND CORNWALL PROBATION TRUST,3613744,30115.09
MOJ,NOMS,04/08/2010,Contracted-out Probation Boards,Woodhill,THAMES VALLEY PROBATION TRUST,3644336,30836.41
MOJ,NOMS,04/08/2010,Probation - Loan Charges,Director of Probation's Office,LOCAL COUNCILS LOAN CHARGES,3645998,31845.83
MOJ,NOMS,04/08/2010,Probation - Loan Charges,Director of Probation's Office,LOCAL COUNCILS LOAN CHARGES,3646004,33670.83
MOJ,NOMS,04/08/2010,Buildings - Acquisitions,Usk,BMSI LTD,3572785,34016.25
MOJ,NOMS,04/08/2010,Probation - Loan Charges,Director of Probation's Office,LOCAL COUNCILS LOAN CHARGES,3646035,34946.00
MOJ,NOMS,04/08/2010,Probation - Loan Charges,Director of Probation's Office,LOCAL COUNCILS LOAN CHARGES,3645996,35767.00
MOJ,NOMS,04/08/2010,Probation - Loan Charges,Director of Probation's Office,LOCAL COUNCILS LOAN CHARGES,3645997,36308.95
MOJ,NOMS,04/08/2010,Probation - Loan Charges,Director of Probation's Office,LOCAL COUNCILS LOAN CHARGES,3646022,36403.00
MOJ,NOMS,04/08/2010,Probation - Loan Charges,Director of Probation's Office,LOCAL COUNCILS LOAN CHARGES,3646029,37338.00
MOJ,NOMS,04/08/2010,Probation - Loan Charges,Director of Probation's Office,LOCAL COUNCILS LOAN CHARGES,3646001,37870.00
MOJ,NOMS,04/08/2010,Gas,Stafford,CORONA ENERGY RETAIL 4 LTD,3645661,37995.70
MOJ,NOMS,04/08/2010,Contracted-out Resettlement Services,Deerbolt,DEPAUL,3604109,40000.00
MOJ,NOMS,04/08/2010,Buildings - Acquisitions,Usk,BMSI LTD,3539426,41576.20
MOJ,NOMS,04/08/2010,WIP - Professional Fees,Estates Capacity,CYRIL SWEETT LTD,3644014,43705.96
MOJ,NOMS,04/08/2010,Travel - Non-Taxable,HOPPS Payroll Charge,CARLSON WAGONLIT TRAVEL,3645697,44329.68
MOJ,NOMS,04/08/2010,Probation - Loan Charges,Director of Probation's Office,LOCAL COUNCILS LOAN CHARGES,3645974,45284.00
MOJ,NOMS,04/08/2010,Probation - Loan Charges,Director of Probation's Office,LOCAL COUNCILS LOAN CHARGES,3645975,45453.00
MOJ,NOMS,04/08/2010,Probation - Loan Charges,Director of Probation's Office,LOCAL COUNCILS LOAN CHARGES,3646036,49572.54
MOJ,NOMS,04/08/2010,Probation - Loan Charges,Director of Probation's Office,LOCAL COUNCILS LOAN CHARGES,3645990,53743.00
MOJ,NOMS,04/08/2010,Counselling & Advisory Costs,Hewell,SOUTH STAFFORDSHIRE AND SHROPSHIRE HEALTHCARE NHS FOUNDATION TRUST,3644525,54032.00
MOJ,NOMS,04/08/2010,Clothing,Offender Employment Skills & Services Group,CARPENTER LTD,3607165,58394.12
MOJ,NOMS,04/08/2010,Probation - Loan Charges,Director of Probation's Office,LOCAL COUNCILS LOAN CHARGES,3646003,61312.00
MOJ,NOMS,04/08/2010,Contracted-out operation of prisons and detention centres,Dovegate,MORETON PRISON SERVICES LTD,3645019,63722.00
MOJ,NOMS,04/08/2010,Probation - Loan Charges,Director of Probation's Office,LOCAL COUNCILS LOAN CHARGES,3646012,70296.05
MOJ,NOMS,04/08/2010,Contract IT Maintenance,MoJ ICT,HP ENTERPRISE SERVICES UK LTD,3643686,72115.67
MOJ,NOMS,04/08/2010,Probation - Loan Charges,Director of Probation's Office,LOCAL COUNCILS LOAN CHARGES,3646030,73572.00
MOJ,NOMS,04/08/2010,Contracted-out operation of prisons and detention centres,Parc,BRIDGEND CUSTODIAL SERVICES LTD,3645027,80612.40
MOJ,NOMS,04/08/2010,WIP - Acquisitions,MoJ ICT,HP ENTERPRISE SERVICES UK LTD,3643075,80632.99
MOJ,NOMS,04/08/2010,Contracted-out Probation Trusts,South East DOMS Office,THAMES VALLEY PROBATION TRUST,3645182,90164.32
MOJ,NOMS,04/08/2010,Contracted-out operation of prisons and detention centres,Parc,BRIDGEND CUSTODIAL SERVICES LTD,3645058,99454.20
MOJ,NOMS,04/08/2010,Contract IT Maintenance,MoJ ICT,HP ENTERPRISE SERVICES UK LTD,3643670,121306.66
MOJ,NOMS,04/08/2010,Contract IT Maintenance,MoJ ICT,HP ENTERPRISE SERVICES UK LTD,3643671,121306.66
MOJ,NOMS,04/08/2010,WIP - Acquisitions,Estates Capacity,HENRY BOOT CONSTRUCTION (U K) LTD,3644066,121310.88
MOJ,NOMS,04/08/2010,Payments to voluntary Organisations,Business and Service Development Group,PRISONERS ABROAD,3645691,124875.00
MOJ,NOMS,04/08/2010,WIP - Acquisitions,Estates Capacity,CARILLION JM LIMITED,3645393,130068.90
MOJ,NOMS,04/08/2010,Prison Shop Cost of Sales (No VAT),Chief Operating Officers Office,EXEL EUROPE1 LTD,3644061,168366.18
MOJ,NOMS,04/08/2010,WIP - Acquisitions,Estates Capacity,CRISPIN & BORST LTD,3621190,170013.10
MOJ,NOMS,04/08/2010,WIP - Acquisitions,MoJ ICT,HP ENTERPRISE SERVICES UK LTD,3643076,185194.63
MOJ,NOMS,04/08/2010,WIP - Acquisitions,Estates Capacity,CARILLION CONSTRUCTION LTD,3645559,188587.50
MOJ,NOMS,04/08/2010,WIP - Acquisitions,Estates Capacity,ISG REGIONS LTD,3644065,196031.13
MOJ,NOMS,04/08/2010,WIP - Acquisitions,Estates Capacity,CARILLION JM LIMITED,3645392,261973.35
MOJ,NOMS,04/08/2010,WIP - Acquisitions,Estates Capacity,BRIDGEND CUSTODIAL SERVICES LTD,3643650,281471.25
MOJ,NOMS,04/08/2010,Contracted-out operation of prisons and detention centres,Parc,BRIDGEND CUSTODIAL SERVICES LTD,3645062,306349.44
MOJ,NOMS,04/08/2010,Prison Shop Cost of Sales,Chief Operating Officers Office,EXEL EUROPE1 LTD,3644061,371667.32
MOJ,NOMS,04/08/2010,Contracted-out Escorts,Prisoner Escort & Custody Service (PECS),G4S CARE & JUSTICE SERVICES LTD,3644617,675150.87
MOJ,NOMS,05/08/2010,Clothing,Offender Employment Skills & Services Group,P & R FABRICS LTD,3645391,25746.53
MOJ,NOMS,05/08/2010,"Prisoner Compensation over 5,000",Chief Operating Officers Office,TREASURY SOLICITORS,3647486,29500.00
MOJ,NOMS,05/08/2010,Professional Advice,Business and Service Development Group,KINGS COLLEGE,3624110,30000.00
MOJ,NOMS,05/08/2010,Secondments,Hindley,GREATER MANCHESTER WEST MENTAL HEALTH NHS FOUNDATION TRUST,3646080,35000.00
MOJ,NOMS,05/08/2010,Resource Grants / Grant-in-Aid,ROM - South West,HOME GROUP LTD (STONHAM),3647481,36688.00
MOJ,NOMS,05/08/2010,Phase 1,Hindley,GREATER MANCHESTER WEST MENTAL HEALTH NHS FOUNDATION TRUST,3646080,40000.00
MOJ,NOMS,05/08/2010,WIP - Acquisitions,Estates Capacity,MAYBOURNE & RUSSELL LTD,3621163,40193.22
MOJ,NOMS,05/08/2010,WIP - Acquisitions,Estates Capacity,MAYBOURNE & RUSSELL LTD,3591776,43026.15
MOJ,NOMS,05/08/2010,Contracted-out operation of prisons and detention centres,Dovegate,MORETON PRISON SERVICES LTD,3645024,43611.08
MOJ,NOMS,05/08/2010,Contract IT Maintenance,MoJ ICT,HP ENTERPRISE SERVICES UK LTD,3643687,43874.69
MOJ,NOMS,05/08/2010,Contract IT Maintenance,NOMS ICT,HP ENTERPRISE SERVICES UK LTD,3645066,45042.94
MOJ,NOMS,05/08/2010,Contracted-out Other Services,Area Services,CLEARSPRINGS MANAGEMENT LTD,3626768,59824.99
MOJ,NOMS,05/08/2010,VISA Costs,MOJ Shared Services NOMS Delivery,ARVAL UK LTD,3639868,62218.42
MOJ,NOMS,05/08/2010,VISA Costs,MOJ Shared Services NOMS Delivery,ARVAL UK LTD,3647556,68409.80
MOJ,NOMS,05/08/2010,Rates and Ground Rents,Estates Capacity,NORTH NORFOLK DISTRICT COUNCIL,3647511,93979.06
MOJ,NOMS,05/08/2010,WIP - Acquisitions,Estates Capacity,KIER NORTHERN,3645575,325808.57
MOJ,NOMS,05/08/2010,Contracted-out Escorts,Prisoner Escort & Custody Service (PECS),SERCO LTD,3645088,1042242.83
MOJ,NOMS,05/08/2010,Contracted-out Escorts,Prisoner Escort & Custody Service (PECS),SERCO LTD,3645087,1318362.91
MOJ,NOMS,05/08/2010,Contracted-out operation of prisons and detention centres,Dovegate,MORETON PRISON SERVICES LTD,3644625,2382621.99
MOJ,NOMS,06/08/2010,Contracted-out operation of prisons and detention centres,Peterborough,PETERBOROUGH PRISON MANAGEMENT LTD,3649112,-76519.69
MOJ,NOMS,06/08/2010,Pin Phone Suspense,Manchester,BT PAYPHONES,3649549,25189.55
MOJ,NOMS,06/08/2010,Pin Phone Suspense,Sheppey Clustered Services,BT PAYPHONES,3649475,26696.81
MOJ,NOMS,06/08/2010,Contracted-out operation of prisons and detention centres,Altcourse,FAZAKERLEY PRISON SERVICES LTD,3648767,27472.42
MOJ,NOMS,06/08/2010,Contracted-out operation of prisons and detention centres,Bronzefield,ASHFORD PRISON SERVICES LIMITED,3649119,28696.64
MOJ,NOMS,06/08/2010,Contracted-out operation of prisons and detention centres,Forest Bank,AGECROFT PRISON MANAGEMENT LTD,3649560,33705.09
MOJ,NOMS,06/08/2010,Contracted-out operation of prisons and detention centres,Peterborough,PETERBOROUGH PRISON MANAGEMENT LTD,3649114,33916.25
MOJ,NOMS,06/08/2010,Contracted-out operation of prisons and detention centres,Rye Hill,ONLEY PRISON SERVICES LTD,3648777,33943.06
MOJ,NOMS,06/08/2010,Professional Advice,Financial Control & Accountancy,DELOITTE MCS LTD,3648109,35178.00
MOJ,NOMS,06/08/2010,Subsistence,HOPPS Payroll Charge,CALDER CONFERENCE,3649695,36944.25
MOJ,NOMS,06/08/2010,Contracted-out operation of prisons and detention centres,Peterborough,PETERBOROUGH PRISON MANAGEMENT LTD,3649085,37516.06
MOJ,NOMS,06/08/2010,Contracted-out operation of prisons and detention centres,Peterborough,PETERBOROUGH PRISON MANAGEMENT LTD,3649115,38182.08
MOJ,NOMS,06/08/2010,WIP - Acquisitions,MoJ ICT,HP ENTERPRISE SERVICES UK LTD,3639243,41767.70
MOJ,NOMS,06/08/2010,Contracted-out operation of prisons and detention centres,Rye Hill,ONLEY PRISON SERVICES LTD,3649569,46269.46
MOJ,NOMS,06/08/2010,"Books, Stationery & IT Consumables",Offender Employment Skills & Services Group,CARPENTER LTD,3641821,47382.96
MOJ,NOMS,06/08/2010,"Books, Stationery & IT Consumables",Offender Employment Skills & Services Group,CARPENTER LTD,3632913,49714.40
MOJ,NOMS,06/08/2010,WIP - Acquisitions,MoJ ICT,HP ENTERPRISE SERVICES UK LTD,3639241,53090.77
MOJ,NOMS,06/08/2010,Works,Estates Capacity,C R H FENCING LTD,3646170,56094.50
MOJ,NOMS,06/08/2010,Resource Grants / Grant-in-Aid,Wales/Cymru DOMS Office,SAFER WALES LTD,3649387,62500.00
MOJ,NOMS,06/08/2010,Resource Grants / Grant-in-Aid,Wales/Cymru DOMS Office,SAFER WALES LTD,3649388,62500.00
MOJ,NOMS,06/08/2010,Contracted-out Resettlement Services,NOMS CFO,MERSEYSIDE PROBATION TRUST,3639900,71145.60
MOJ,NOMS,06/08/2010,Works,Estates Capacity,C R H FENCING LTD,3635368,72121.50
MOJ,NOMS,06/08/2010,Works,Estates Capacity,C R H FENCING LTD,3638768,72121.50
MOJ,NOMS,06/08/2010,Works,Estates Capacity,C R H FENCING LTD,3610810,73390.50
MOJ,NOMS,06/08/2010,Works,Estates Capacity,C R H FENCING LTD,3620614,73390.50
MOJ,NOMS,06/08/2010,Works,Estates Capacity,C R H FENCING LTD,3610422,73390.50
MOJ,NOMS,06/08/2010,Works,Estates Capacity,C R H FENCING LTD,3628341,73390.50
MOJ,NOMS,06/08/2010,Subsistence,HOPPS Payroll Charge,CALDER CONFERENCE,3649697,76794.10
MOJ,NOMS,06/08/2010,Consultancy,Estates Capacity,ATKINS LTD,3601171,79292.27
MOJ,NOMS,06/08/2010,WIP - Acquisitions,Estates Capacity,INTERSERVE PROJECT SERVICES LTD,3648749,80409.72
MOJ,NOMS,06/08/2010,Contracted-out Probation Trusts,South East DOMS Office,KENT PROBATION TRUST,3648956,103602.00
MOJ,NOMS,06/08/2010,Legal Representation,Chief Operating Officers Office,HER MAJESTY'S COURTS SERVICE,3649065,127200.00
MOJ,NOMS,06/08/2010,WIP - Acquisitions,Estates Capacity,WATES CONSTRUCTION LTD,3647697,162855.00
MOJ,NOMS,06/08/2010,WIP - Acquisitions,Estates Capacity,WATES CONSTRUCTION LTD,3647698,199162.50
MOJ,NOMS,06/08/2010,WIP - Acquisitions,Estates Capacity,KIER REGIONAL LTD,3648744,260370.60
MOJ,NOMS,06/08/2010,WIP - Acquisitions,Estates Capacity,INTERSERVE PROJECT SERVICES LTD,3647889,325883.90
MOJ,NOMS,06/08/2010,WIP - Acquisitions,Estates Capacity,KIER REGIONAL LTD,3648745,366541.25
MOJ,NOMS,06/08/2010,WIP - Acquisitions,MoJ ICT,HP ENTERPRISE SERVICES UK LTD,3639250,399245.65
MOJ,NOMS,06/08/2010,Contracted-out Escorts,Prisoner Escort & Custody Service (PECS),G4S CARE & JUSTICE SERVICES LTD,3644614,508348.33
MOJ,NOMS,06/08/2010,Contracted-out Probation Trusts,Dorset Probation Trust,DORSET PROBATION TRUST,3643665,764391.00
MOJ,NOMS,09/08/2010,WIP - Professional Fees,Estates Capacity,JACOBS ENGINEERING UK,3641787,25360.39
MOJ,NOMS,09/08/2010,Contracted-out operation of prisons and detention centres,Peterborough,PETERBOROUGH PRISON MANAGEMENT LTD,3649087,25833.08
MOJ,NOMS,09/08/2010,Contracted-out Probation Trusts,Norwich,NORFOLK AND SUFFOLK PROBATION TRUST,3647987,26072.62
MOJ,NOMS,09/08/2010,Raw Materials - ESS/LBA Industries Internal Use within the HO,Featherstone,L & P (PSCS),3648873,27532.01
MOJ,NOMS,09/08/2010,Contracted-out Probation Boards,Onley,NORTHAMPTONSHIRE PROBATION TRUST,3651084,28257.72
MOJ,NOMS,09/08/2010,WIP - Professional Fees,Estates Capacity,FAITHFUL + GOULD,3648867,31596.21
MOJ,NOMS,09/08/2010,WIP - Professional Fees,Estates Capacity,RIDER LEVETT BUCKNALL UK LTD,3648806,37715.41
MOJ,NOMS,09/08/2010,Raw Materials Issued,Offender Employment Skills & Services Group,L & P (PSCS),3648872,38943.81
MOJ,NOMS,09/08/2010,WIP - Professional Fees,Estates Capacity,FAITHFUL + GOULD,3648868,48238.12
MOJ,NOMS,09/08/2010,Contracted-out operation of prisons and detention centres,Bronzefield,ASHFORD PRISON SERVICES LIMITED,3649118,49391.36
MOJ,NOMS,09/08/2010,Contracted-out operation of prisons and detention centres,Peterborough,PETERBOROUGH PRISON MANAGEMENT LTD,3649088,50577.12
MOJ,NOMS,09/08/2010,Contracted-out Probation Trusts,Latchmere House,LONDON PROBATION TRUST,3651074,79518.13
MOJ,NOMS,09/08/2010,Professional Advice,DO NOT USE Offender Assessment & Management Group,SHEFFIELD HALLAM UNIVERSITY,3616944,81085.00
MOJ,NOMS,09/08/2010,WIP - Acquisitions,Estates Capacity,WATES CONSTRUCTION LTD,3650558,86255.58
MOJ,NOMS,09/08/2010,Contracted-out Probation Boards,Wormwood Scrubs,LONDON PROBATION TRUST,3651072,134726.86
MOJ,NOMS,09/08/2010,Contracted-out Probation Boards,Pentonville,LONDON PROBATION TRUST,3651075,149705.50
MOJ,NOMS,09/08/2010,Contracted-out Escorts,Prisoner Escort & Custody Service (PECS),G4S CARE & JUSTICE SERVICES LTD,3644609,553778.50
MOJ,NOMS,09/08/2010,Contracted-out operation of prisons and detention centres,Dovegate,MORETON PRISON SERVICES LTD,3644626,576490.00
MOJ,NOMS,09/08/2010,WIP - Acquisitions,Estates Capacity,KIER REGIONAL LTD,3649768,874649.63
MOJ,NOMS,09/08/2010,Contracted-out Escorts,Prisoner Escort & Custody Service (PECS),G4S CARE & JUSTICE SERVICES LTD,3644613,951724.00
MOJ,NOMS,09/08/2010,Contracted-out Escorts,Prisoner Escort & Custody Service (PECS),G4S CARE & JUSTICE SERVICES LTD,3644610,1038035.25
MOJ,NOMS,09/08/2010,Contracted-out Escorts,Prisoner Escort & Custody Service (PECS),G4S CARE & JUSTICE SERVICES LTD,3644615,1093918.31
MOJ,NOMS,09/08/2010,Contracted-out operation of prisons and detention centres,Peterborough,PETERBOROUGH PRISON MANAGEMENT LTD,3649084,1350455.08
MOJ,NOMS,09/08/2010,Contracted-out Escorts,Prisoner Escort & Custody Service (PECS),G4S CARE & JUSTICE SERVICES LTD,3644611,1443786.96
MOJ,NOMS,09/08/2010,Contracted-out Escorts,Prisoner Escort & Custody Service (PECS),SERCO LTD,3645089,1663935.17
MOJ,NOMS,09/08/2010,Contracted-out operation of prisons and detention centres,Ashfield,PUCKLECHURCH CUSTODIAL SERVICES LTD,3644627,2079852.00
MOJ,NOMS,09/08/2010,Contracted-out operation of prisons and detention centres,Parc,BRIDGEND CUSTODIAL SERVICES LTD,3645025,3106944.00
MOJ,NOMS,10/08/2010,Electricity,Highpoint,EDF ENERGY,3651644,25044.24
MOJ,NOMS,10/08/2010,Contracted-out Catering Services,Woodhill,ARAMARK LTD,3651535,25650.35
MOJ,NOMS,10/08/2010,Official Postage & Couriers,Styal,ACTION FOR CHILDREN SERVICES LTD,3645281,26295.52
MOJ,NOMS,10/08/2010,Contracted-out Other Services,New Hall,ACTION FOR CHILDREN SERVICES LTD,3626626,26295.52
MOJ,NOMS,10/08/2010,Electricity,Holme House,EDF ENERGY,3651612,26732.18
MOJ,NOMS,10/08/2010,Electricity,Leeds,EDF ENERGY,3651523,26838.97
MOJ,NOMS,10/08/2010,Electricity,Hewell,EDF ENERGY,3651742,26971.52
MOJ,NOMS,10/08/2010,Electricity,Wormwood Scrubs,EDF ENERGY,3651502,27478.23
MOJ,NOMS,10/08/2010,Electricity,Risley,EDF ENERGY,3651468,27577.32
MOJ,NOMS,10/08/2010,Electricity,Bullingdon,EDF ENERGY,3651602,28608.18
MOJ,NOMS,10/08/2010,Contracted-out Probation Boards,Isis,LONDON PROBATION TRUST,3651076,28926.78
MOJ,NOMS,10/08/2010,Electricity,Full Sutton,EDF ENERGY,3651635,28982.40
MOJ,NOMS,10/08/2010,Electricity,Woodhill,EDF ENERGY,3651632,29387.31
MOJ,NOMS,10/08/2010,Contracted-out Probation Boards,Bure,NORFOLK AND SUFFOLK PROBATION TRUST,3647990,31983.18
MOJ,NOMS,10/08/2010,Electricity,Sheppey Clustered Services,EDF ENERGY,3651639,33620.31
MOJ,NOMS,10/08/2010,Electricity,Birmingham,EDF ENERGY,3651670,34540.44
MOJ,NOMS,10/08/2010,Electricity,Acklington,EDF ENERGY,3651657,35147.79
MOJ,NOMS,10/08/2010,Electricity,Wandsworth,EDF ENERGY,3651521,36390.92
MOJ,NOMS,10/08/2010,Electricity,Highdown,EDF ENERGY,3651631,37419.47
MOJ,NOMS,10/08/2010,Electricity,Manchester,EDF ENERGY,3651706,37448.41
MOJ,NOMS,10/08/2010,Contracted-out Probation Trusts,Wellingborough,NORTHAMPTONSHIRE PROBATION TRUST,3651083,39830.68
MOJ,NOMS,10/08/2010,Electricity,Belmarsh,EDF ENERGY,3651598,40793.19
MOJ,NOMS,10/08/2010,Electricity,Frankland,EDF ENERGY,3651624,41701.86
MOJ,NOMS,10/08/2010,Payments to voluntary Organisations,East of England Regional NOMS Office,ORMISTON CHILDREN & FAMILIES TRUST,3649934,62802.00
MOJ,NOMS,10/08/2010,Travel - Non-Taxable,HOPPS Payroll Charge,CARLSON WAGONLIT TRAVEL,3651475,63718.27
MOJ,NOMS,10/08/2010,WIP - Acquisitions,MoJ ICT,HP ENTERPRISE SERVICES UK LTD,3639214,70692.79
MOJ,NOMS,10/08/2010,Contracted-out Probation Trusts,Holloway,LONDON PROBATION TRUST,3651077,100967.23
MOJ,NOMS,10/08/2010,Contracted-out Probation Trusts,Brixton,LONDON PROBATION TRUST,3651078,106571.85
MOJ,NOMS,10/08/2010,WIP - Professional Fees,Estates Capacity,JACOBS ENGINEERING UK,3617318,113450.49
MOJ,NOMS,10/08/2010,WIP - Acquisitions,Estates Capacity,HENRY BOOT CONSTRUCTION (U K) LTD,3649931,160057.33
MOJ,NOMS,10/08/2010,Contracted-out Probation Boards,Wandsworth,LONDON PROBATION TRUST,3651073,191282.78
MOJ,NOMS,10/08/2010,WIP - Acquisitions,Estates Capacity,HENRY BOOT CONSTRUCTION (U K) LTD,3650506,199780.55
MOJ,NOMS,10/08/2010,WIP - Acquisitions,Estates Capacity,ISG REGIONS LTD,3649906,293422.18
MOJ,NOMS,10/08/2010,WIP - Professional Fees,Estates Capacity,KIER REGIONAL LTD,3641358,319365.00
MOJ,NOMS,10/08/2010,WIP - Acquisitions,Estates Capacity,CALEDONIAN BUILDING SYSTEMS,3652465,374302.13
MOJ,NOMS,10/08/2010,WIP - Acquisitions,Estates Capacity,SHAYLOR CONSTRUCTION LTD,3650507,427318.13
MOJ,NOMS,10/08/2010,Funding payments to Probation Boards,West Midlands DOMS Office,WARWICKSHIRE PROBATION TRUST,3648904,550000.00
MOJ,NOMS,10/08/2010,WIP - Acquisitions,Estates Capacity,KIER NORTHERN,3650508,658459.43
MOJ,NOMS,10/08/2010,Contracted-out Probation Trusts,York and North Yorkshire Probation Trust,YORK AND NORTH YORKSHIRE PROBATION TRUST,3641648,870885.00
MOJ,NOMS,10/08/2010,Contracted-out Probation Trusts,Cheshire Probation Trust,CHESHIRE PROBATION TRUST,3648932,1200000.00
MOJ,NOMS,10/08/2010,Contracted-out Probation Trusts,Nottinghamshire Probation Trust,NOTTINGHAMSHIRE PROBATION TRUST,3645644,1612000.00
MOJ,NOMS,10/08/2010,Contracted-out Probation Trusts,South Yorkshire Probation Trust,SOUTH YORKSHIRE PROBATION TRUST,3644319,2300000.00
MOJ,NOMS,10/08/2010,Contracted-out Probation Trusts,Merseyside Probation Trust,MERSEYSIDE PROBATION TRUST,3649897,2500000.00
MOJ,NOMS,10/08/2010,Contracted-out Probation Trusts,West Yorkshire Probation Trust,WEST YORKSHIRE PROBATION TRUST,3641649,3470600.00
MOJ,NOMS,10/08/2010,Contracted-out Probation Trusts,Greater Manchester Probation Trust,GREATER MANCHESTER PROBATION TRUST,3644041,4109070.00
MOJ,NOMS,10/08/2010,Funding payments to Probation Boards,Wales Probation Trust,WALES PROBATION TRUST,3648933,4461329.00
MOJ,NOMS,10/08/2010,Funding payments to Probation Boards,West Midlands DOMS Office,STAFFORDSHIRE AND WEST MIDLANDS PROBATION TRUST,3640816,4600000.00
MOJ,NOMS,10/08/2010,Contracted-out Probation Boards,London DOMS Office,LONDON PROBATION TRUST,3648312,12475000.00
MOJ,NOMS,11/08/2010,Legal Representation,Estates Capacity,EVERSHEDS LLP,,-95086.33
MOJ,NOMS,11/08/2010,Electricity,Nottingham,EDF ENERGY,3655660,26643.53
MOJ,NOMS,11/08/2010,Contract IT Maintenance,NOMS ICT,SAP (UK) LTD,3653027,27550.00
MOJ,NOMS,11/08/2010,Legal Representation,Director of Probation's Office,TREASURY SOLICITORS,3632576,27812.53
MOJ,NOMS,11/08/2010,Electricity,Liverpool,EDF ENERGY,3655711,28568.46
MOJ,NOMS,11/08/2010,Water and Sewage,Sheppey Clustered Services,SOUTHERN WATER SERVICES LTD,3655802,28736.65
MOJ,NOMS,11/08/2010,Electricity,Sheppey Clustered Services,EDF ENERGY,3655773,30018.49
MOJ,NOMS,11/08/2010,Contracted-out Probation Trusts,Preston,LANCASHIRE PROBATION TRUST,3654239,32170.70
MOJ,NOMS,11/08/2010,WIP - Acquisitions,Estates Capacity,WATES CONSTRUCTION LTD,3654380,32782.50
MOJ,NOMS,11/08/2010,In Cell TV Costs,Unallocated Budgets,COMPUTACENTER (U K) LTD,3655899,33444.15
MOJ,NOMS,11/08/2010,Specialist Contractors,Performance Information and Analysis Group,PRICEWATERHOUSECOOPERS LLP,3651987,43864.72
MOJ,NOMS,11/08/2010,Payments to voluntary Organisations,East of England Regional NOMS Office,NACRO NCT (EAST ANGLIA),3652673,44276.00
MOJ,NOMS,11/08/2010,WIP - Acquisitions,Estates Capacity,VINCI CONSTRUCTION UK LTD,3654366,46757.95
MOJ,NOMS,11/08/2010,WIP - Acquisitions,MoJ ICT,HP ENTERPRISE SERVICES UK LTD,3639213,48429.73
MOJ,NOMS,11/08/2010,Electricity,Lindholme,EDF ENERGY,3655762,52222.80
MOJ,NOMS,11/08/2010,Specialist Contractors,NOMS Communications,HP ENTERPRISE SERVICES UK LTD,3655264,54502.06
MOJ,NOMS,11/08/2010,Contracted-out Probation Trusts,South East DOMS Office,THAMES VALLEY PROBATION TRUST,3651796,56416.00
MOJ,NOMS,11/08/2010,"Books, Stationery & IT Consumables",Offender Employment Skills & Services Group,CARPENTER LTD,3589945,71562.96
MOJ,NOMS,11/08/2010,Training Materials,Isis,X M A LTD,3655886,77357.30
MOJ,NOMS,11/08/2010,Payments to voluntary Organisations,East of England Regional NOMS Office,NACRO NCT (EAST ANGLIA),3652671,108692.41
MOJ,NOMS,11/08/2010,WIP - Acquisitions,Estates Capacity,WATES CONSTRUCTION LTD,3654065,128522.26
MOJ,NOMS,11/08/2010,WIP - Professional Fees,Estates Capacity,KIER REGIONAL LTD,3655913,217610.00
MOJ,NOMS,11/08/2010,WIP - Acquisitions,Estates Capacity,WILLMOTT DIXON CONSTRUCTION LTD,3653912,224537.31
MOJ,NOMS,11/08/2010,Consultancy,Estates Capacity,DELOITTE MCS LTD,3652076,275644.66
MOJ,NOMS,11/08/2010,WIP - Acquisitions,Estates Capacity,WATES CONSTRUCTION LTD,3654713,406540.96
MOJ,NOMS,11/08/2010,WIP - Acquisitions,Estates Capacity,INTERSERVE PROJECT SERVICES LTD,3655075,467650.00
MOJ,NOMS,11/08/2010,Contracted-out operation of prisons and detention centres,Altcourse,FAZAKERLEY PRISON SERVICES LTD,3648120,660804.37
MOJ,NOMS,11/08/2010,Payments to voluntary Organisations,Business and Service Development Group,NACRO LTD,3655546,1001509.50
MOJ,NOMS,11/08/2010,Contracted-out operation of prisons and detention centres,Peterborough,PETERBOROUGH PRISON MANAGEMENT LTD,3649086,1188321.45
MOJ,NOMS,11/08/2010,Contracted-out operation of prisons and detention centres,Rye Hill,ONLEY PRISON SERVICES LTD,3648122,1718932.50
MOJ,NOMS,11/08/2010,Contracted-out operation of prisons and detention centres,Lowdham Grange,LOWDHAM GRANGE PRISON SERVICES LTD,3644623,2043476.03
MOJ,NOMS,11/08/2010,Contracted-out operation of prisons and detention centres,Bronzefield,ASHFORD PRISON SERVICES LIMITED,3649083,2255069.66
MOJ,NOMS,11/08/2010,Contracted-out operation of prisons and detention centres,Forest Bank,AGECROFT PRISON MANAGEMENT LTD,3649542,2861893.85
MOJ,NOMS,11/08/2010,WIP - Acquisitions,Estates Capacity,KIER REGIONAL LTD,3648416,11737259.93
MOJ,NOMS,12/08/2010,Contracted-out Probation Trusts,South East DOMS Office,SURREY & SUSSEX PROBATION TRUST,3635293,-4000000.00
MOJ,NOMS,12/08/2010,Contracted-out Other Services,New Hall,ACTION FOR CHILDREN SERVICES LTD,3657130,-26295.52
MOJ,NOMS,12/08/2010,Secondments,Probation Trust Unit,LONDON PROBATION TRUST,3654117,26218.47
MOJ,NOMS,12/08/2010,Electricity,Isis,EDF ENERGY,3655927,28229.07
MOJ,NOMS,12/08/2010,Contracted-out Library,Feltham,HOUNSLOW CULTURAL  &  COMMUNITY SERVICES,3651267,31490.56
MOJ,NOMS,12/08/2010,In Cell TV Costs,Unallocated Budgets,COMPUTACENTER (U K) LTD,3657175,32221.46
MOJ,NOMS,12/08/2010,Contract IT Maintenance,MoJ ICT,HP ENTERPRISE SERVICES UK LTD,3639244,36735.63
MOJ,NOMS,12/08/2010,In Cell TV Costs,Unallocated Budgets,COMPUTACENTER (U K) LTD,3657163,36796.25
MOJ,NOMS,12/08/2010,Electricity,Isis,EDF ENERGY,3655926,37085.57
MOJ,NOMS,12/08/2010,Contracted-out Resettlement Services,Cookham Wood,MEDWAY COUNCIL,3658944,51218.68
MOJ,NOMS,12/08/2010,WIP - Acquisitions,Estates Capacity,GREENWICH COUNCIL,3647535,52710.00
MOJ,NOMS,12/08/2010,Drugs,Rochester,A A H PHARMACEUTICALS LTD,3657133,60135.34
MOJ,NOMS,12/08/2010,WIP - Acquisitions,Estates Capacity,INTERSERVE PROJECT SERVICES LTD,3658808,61100.00
MOJ,NOMS,12/08/2010,WIP - Acquisitions,Estates Capacity,INTERSERVE PROJECT SERVICES LTD,3658809,64037.50
MOJ,NOMS,12/08/2010,"Books, Stationery & IT Consumables",Offender Employment Skills & Services Group,CARPENTER LTD,3572328,76436.81
MOJ,NOMS,12/08/2010,WIP - Acquisitions,MoJ ICT,HP ENTERPRISE SERVICES UK LTD,3651697,157482.24
MOJ,NOMS,12/08/2010,WIP - Acquisitions,Estates Capacity,WATES CONSTRUCTION LTD,3653932,297156.33
MOJ,NOMS,12/08/2010,Contracted-out Probation Trusts,Gloucestershire Probation Trust,GLOUCESTERSHIRE PROBATION TRUST,3654441,563179.16
MOJ,NOMS,12/08/2010,Contracted-out Probation Trusts,Wiltshire Probation Trust,WILTSHIRE PROBATION TRUST,3648934,637992.00
MOJ,NOMS,12/08/2010,Contracted-out Probation Trusts,Dorset Probation Trust,DORSET PROBATION TRUST,3642027,764391.00
MOJ,NOMS,12/08/2010,Contracted-out Probation Trusts,Bedfordshire Probation Trust,BEDFORDSHIRE PROBATION TRUST,3654392,803147.00
MOJ,NOMS,12/08/2010,Contracted-out Probation Trusts,Cambridgeshire Probation Trust,CAMBRIDGESHIRE & PETERBOROUGH PROBATION TRUST,3644777,847553.00
MOJ,NOMS,12/08/2010,Contracted-out Probation Trusts,Hertfordshire Probation Trust,HERTFORDSHIRE PROBATION TRUST,3646212,958128.00
MOJ,NOMS,12/08/2010,WIP - Acquisitions,Estates Capacity,KIER REGIONAL LTD,3635226,1001100.00
MOJ,NOMS,12/08/2010,Funding payments to Probation Boards,West Midlands DOMS Office,WEST MERCIA PROBATION TRUST,3652498,1135600.00
MOJ,NOMS,12/08/2010,Contracted-out Probation Trusts,South East DOMS Office,SURREY & SUSSEX PROBATION TRUST,3644539,1500000.00
MOJ,NOMS,12/08/2010,Contracted-out Probation Trusts,South East DOMS Office,KENT PROBATION TRUST,3648958,1500000.00
MOJ,NOMS,12/08/2010,Contracted-out Probation Trusts,Avon and Somerset Probation Trust,AVON AND SOMERSET PROBATION TRUST,3649815,1713000.00
MOJ,NOMS,12/08/2010,Contracted-out Probation Trusts,Norfolk & Suffolk Probation Trust,NORFOLK AND SUFFOLK PROBATION TRUST,3644778,1749601.00
MOJ,NOMS,12/08/2010,Contracted-out operation of prisons and detention centres,Doncaster,SERCO LTD,3658606,1892280.09
MOJ,NOMS,12/08/2010,Contracted-out Probation Trusts,South East DOMS Office,HAMPSHIRE PROBATION TRUST,3652756,2050000.00
MOJ,NOMS,12/08/2010,Contracted-out operation of prisons and detention centres,Altcourse,FAZAKERLEY PRISON SERVICES LTD,3648121,3290656.20
MOJ,NOMS,12/08/2010,Contracted-out Electronic Monitoring,National Operations Group,SERCO LTD,3652973,3931258.82
MOJ,NOMS,12/08/2010,Contracted-out Probation Trusts,South East DOMS Office,SURREY & SUSSEX PROBATION TRUST,3623869,4000000.00
MOJ,NOMS,13/08/2010,Gas,Sheppey Clustered Services,CORONA ENERGY RETAIL 4 LTD,3659291,-29128.51
MOJ,NOMS,13/08/2010,Counselling & Advisory Costs,Everthorpe,R A P T,3659297,27250.00
MOJ,NOMS,13/08/2010,Contracted-out Catering Services,Hewell,ARAMARK LTD,3651527,29159.07
MOJ,NOMS,13/08/2010,Counselling & Advisory Costs,Sheppey Clustered Services,R A P T,3659293,29783.00
MOJ,NOMS,13/08/2010,Counselling & Advisory Costs,Bullingdon,R A P T,3659279,31522.50
MOJ,NOMS,13/08/2010,Contracted-out Resettlement Services,East Midlands DOMS Office,CLEARSPRINGS MANAGEMENT LTD,3626769,31625.79
MOJ,NOMS,13/08/2010,Other - Acquisitions,Leyhill,B M M WESTON LTD,3633413,32900.00
MOJ,NOMS,13/08/2010,Counselling & Advisory Costs,Wormwood Scrubs,R A P T,3659543,33556.27
MOJ,NOMS,13/08/2010,Contracted-out Plant and Equipment Maintenance,Haverigg,COFELY LTD,3660147,34891.10
MOJ,NOMS,13/08/2010,Counselling & Advisory Costs,Highdown,R A P T,3659300,35754.00
MOJ,NOMS,13/08/2010,Counselling & Advisory Costs,Holloway,R A P T,3659304,37997.50
MOJ,NOMS,13/08/2010,Contracted-out Probation Trusts,Whatton,NOTTINGHAMSHIRE PROBATION TRUST,3604650,39816.08
MOJ,NOMS,13/08/2010,Payments to voluntary Organisations,Business and Service Development Group,ZAHID MUBAREK TRUST,3648911,40000.00
MOJ,NOMS,13/08/2010,Contracted-out Building Maintenance,Isis,CARILLION CONSTRUCTION LTD,3658868,41224.94
MOJ,NOMS,13/08/2010,Counselling & Advisory Costs,Wandsworth,R A P T,3659541,43344.77
MOJ,NOMS,13/08/2010,Contracted-out operation of prisons and detention centres,Lowdham Grange,LOWDHAM GRANGE PRISON SERVICES LTD,3644624,44322.56
MOJ,NOMS,13/08/2010,Gas,Nottingham,CORONA ENERGY RETAIL 4 LTD,3659008,55088.18
MOJ,NOMS,13/08/2010,Contracted-out Building Maintenance,Isis,CARILLION CONSTRUCTION LTD,3658867,58931.06
MOJ,NOMS,13/08/2010,Subsistence,HOPPS Payroll Charge,CALDER CONFERENCE,3659287,133965.64
MOJ,NOMS,13/08/2010,Contract IT Maintenance,MoJ ICT,HP ENTERPRISE SERVICES UK LTD,3645029,141796.22
MOJ,NOMS,13/08/2010,WIP - Acquisitions,Estates Capacity,KIER REGIONAL LTD,3649932,152892.18
MOJ,NOMS,13/08/2010,Prison Shop Cost of Sales (No VAT),Chief Operating Officers Office,EXEL EUROPE1 LTD,3658254,187322.70
MOJ,NOMS,13/08/2010,Contract IT Maintenance,MoJ ICT,SUNGARD PUBLIC SECTOR LTD,3658883,190710.00
MOJ,NOMS,13/08/2010,WIP - Acquisitions,Estates Capacity,INTERSERVE PROJECT SERVICES LTD,3658804,238405.15
MOJ,NOMS,13/08/2010,Prison Shop Cost of Sales,Chief Operating Officers Office,EXEL EUROPE1 LTD,3658254,276373.26
MOJ,NOMS,13/08/2010,Contracted-out Probation Trusts,South East DOMS Office,THAMES VALLEY PROBATION TRUST,3658712,1800000.00
MOJ,NOMS,16/08/2010,Specialist Contractors,MOJ Project & ATOS,MINISTRY OF JUSTICE,3655276,-31743.57
MOJ,NOMS,16/08/2010,Water and Sewage,Onley,SEVERN TRENT WATER LTD,3661824,25101.16
MOJ,NOMS,16/08/2010,Gas,Pentonville,COFATHEC ENERGY PFI LTD,3661951,26060.10
MOJ,NOMS,16/08/2010,Specialist Contractors,MOJ Project & ATOS,MINISTRY OF JUSTICE,3453036,31743.57
MOJ,NOMS,16/08/2010,Contracted-out Other Services,New Hall,COFATHEC ENERGY PFI LTD,3661948,34042.80
MOJ,NOMS,16/08/2010,"Books, Stationery & IT Consumables",Offender Employment Skills & Services Group,CARPENTER LTD,3661467,37220.17
MOJ,NOMS,16/08/2010,Contract IT Maintenance,MoJ ICT,SUNGARD PUBLIC SECTOR LTD,3658882,38015.65
MOJ,NOMS,16/08/2010,Contracted-out Probation Trusts,Durham,DURHAM TEES VALLEY PROBATION TRUST,3658314,48391.54
MOJ,NOMS,16/08/2010,Gas,Kirkham,COFATHEC ENERGY PFI LTD,3661946,51834.95
MOJ,NOMS,16/08/2010,Payments to voluntary Organisations,Feltham,ST MUNGO COMMUNITY HOUSING ASSOCIATION LTD,3661161,54000.00
MOJ,NOMS,16/08/2010,Counselling & Advisory Costs,Pentonville,R A P T,3661614,56319.84
MOJ,NOMS,16/08/2010,Specialist Contractors,Workforce Modernisation Programme,HP ENTERPRISE SERVICES UK LTD,3608111,59993.43
MOJ,NOMS,16/08/2010,Contracted-out Medical services,Pentonville,NHS ISLINGTON PROVIDER SERVICES,3661922,86250.00
MOJ,NOMS,16/08/2010,Contracted-out Other Services,Quantum,HP ENTERPRISE SERVICES UK LTD,3661730,245677.80
MOJ,NOMS,16/08/2010,WIP - Acquisitions,Estates Capacity,WILLMOTT DIXON CONSTRUCTION LTD,3650559,480369.38
MOJ,NOMS,16/08/2010,Contracted-out Probation Trusts,Cumbria Probation Trust,CUMBRIA PROBATION TRUST,3661147,553191.49
MOJ,NOMS,16/08/2010,Contracted-out Probation Trusts,Devon and Cornwall Probation Trust,DEVON AND CORNWALL PROBATION TRUST,3661395,1645250.00
MOJ,NOMS,16/08/2010,Contracted-out Probation Trusts,Durham Tees Valley Probation Trust,DURHAM TEES VALLEY PROBATION TRUST,3661328,1873667.00
MOJ,NOMS,16/08/2010,Contracted-out Computer Services,Quantum,HP ENTERPRISE SERVICES UK LTD,3661730,2417720.32
MOJ,NOMS,17/08/2010,Gas,Lewes,COFATHEC ENERGY SERVICES UK LTD,3663651,28276.17
MOJ,NOMS,17/08/2010,Secondments,South East DOMS Office,SURREY & SUSSEX PROBATION TRUST,3662961,29532.10
MOJ,NOMS,17/08/2010,Contracted-out Probation Trusts,Channings Wood,DEVON AND CORNWALL PROBATION TRUST,3642870,32988.59
MOJ,NOMS,17/08/2010,Contracted-out Library,Hewell,WORCESTERSHIRE COUNTY COUNCIL,3656443,34591.00
MOJ,NOMS,17/08/2010,Contracted-out Catering Services,Holme House,ESS SUPPORT SERVICES WORLDWIDE,3652837,35305.29
MOJ,NOMS,17/08/2010,Gas,Lewes,COFATHEC ENERGY SERVICES UK LTD,3663610,36481.41
MOJ,NOMS,17/08/2010,Contracted-out Other Services,Deerbolt,COFATHEC ENERGY SERVICES UK LTD,3663604,38767.57
MOJ,NOMS,17/08/2010,Other Fuels,Chelmsford,COFATHEC ENERGY SERVICES UK LTD,3663638,40036.30
MOJ,NOMS,17/08/2010,General Maintenance Materials,Wales Prisons Estate Management Group (WPEMG),HIGHLAND ELECTRIX (BRIDGEND) LTD,3662949,40112.21
MOJ,NOMS,17/08/2010,"New structural works, structural maintenance and equipment",East of England Regional NOMS Office,EDF ENERGY CONTRACTING LIMITED,3663171,41783.00
MOJ,NOMS,17/08/2010,Contracted-out Other Services,Deerbolt,COFATHEC ENERGY SERVICES UK LTD,3663648,41919.42
MOJ,NOMS,17/08/2010,Contracted-out Other Services,Drake Hall,COFATHEC ENERGY PFI LTD,3626388,43553.40
MOJ,NOMS,17/08/2010,Travel - Non-Taxable,HOPPS Payroll Charge,CARLSON WAGONLIT TRAVEL,3663697,47971.58
MOJ,NOMS,17/08/2010,"New structural works, structural maintenance and equipment",East of England Regional NOMS Office,KINETICS,3648557,57281.25
MOJ,NOMS,17/08/2010,WIP - Acquisitions,Estates Capacity,WATES CONSTRUCTION LTD,3603572,70747.92
MOJ,NOMS,17/08/2010,Contracted-out operation of prisons and detention centres,Parc,BRIDGEND CUSTODIAL SERVICES LTD,3645059,75392.00
MOJ,NOMS,17/08/2010,WIP - Acquisitions,Estates Capacity,INTERSERVE PROJECT SERVICES LTD,3654129,106962.60
MOJ,NOMS,17/08/2010,WIP - Acquisitions,Estates Capacity,INTERSERVE PROJECT SERVICES LTD,3652444,154974.28
MOJ,NOMS,17/08/2010,WIP - Acquisitions,Estates Capacity,INTERSERVE PROJECT SERVICES LTD,3654128,246772.33
MOJ,NOMS,17/08/2010,Contracted-out Probation Trusts,Essex Probation Trust,ESSEX PROBATION TRUST,3663646,1621290.00
MOJ,NOMS,17/08/2010,Contracted-out Probation Trusts,Northumbria Probation Trust,NORTHUMBRIA PROBATION TRUST,3663640,2376000.00
MOJ,NOMS,18/08/2010,Professional Advice,Onley,NACRO PRISONS & RESETTLEMENT,3594971,25425.00
MOJ,NOMS,18/08/2010,Office Equipment Purchases Under 10k,Castington,MITIE PROPERTY SERVICES (UK) LIMITED,3494469,27322.16
MOJ,NOMS,18/08/2010,Contracted-out Other Services,Blundeston,COFATHEC ENERGY SERVICES UK LTD,3663599,37914.05
MOJ,NOMS,18/08/2010,Other Fuels,Chelmsford,COFATHEC ENERGY SERVICES UK LTD,3665946,38142.23
MOJ,NOMS,18/08/2010,Other - Acquisitions,Nottingham,IMPERIAL MACHINE CO LTD,3664449,39913.57
MOJ,NOMS,18/08/2010,Secondments,NOMS ICT,GREATER MANCHESTER PROBATION BOARD,3666181,47473.08
MOJ,NOMS,18/08/2010,"Books, Stationery & IT Consumables",Offender Employment Skills & Services Group,CARPENTER LTD,3580359,49661.90
MOJ,NOMS,18/08/2010,WIP - Professional Fees,Estates Capacity,AEDAS ARCHITECTS LTD,3664548,50030.78
MOJ,NOMS,18/08/2010,WIP - Professional Fees,Estates Capacity,AEDAS ARCHITECTS LTD,3665180,70981.24
MOJ,NOMS,18/08/2010,Contracted-out Probation Boards,Belmarsh,LONDON PROBATION TRUST,3650218,127701.94
MOJ,NOMS,18/08/2010,Legal Representation,Chief Operating Officers Office,TREASURY SOLICITORS,3665874,857901.72
MOJ,NOMS,18/08/2010,Contracted-out Prison Shop,Chief Operating Officers Office,EXEL EUROPE1 LTD,3662966,1401460.00
MOJ,NOMS,19/08/2010,Contracted-out Other Services,Gartree,COFATHEC ENERGY PFI LTD,3666921,26661.13
MOJ,NOMS,19/08/2010,Counselling & Advisory Costs,Nottingham,PHOENIX FUTURES,3589997,27519.00
MOJ,NOMS,19/08/2010,Counselling & Advisory Costs,Nottingham,PHOENIX FUTURES,3665248,28740.95
MOJ,NOMS,19/08/2010,Counselling & Advisory Costs,Nottingham,PHOENIX FUTURES,3590001,29733.00
MOJ,NOMS,19/08/2010,Gas,Lewes,COFATHEC ENERGY SERVICES UK LTD,3638298,32039.09
MOJ,NOMS,19/08/2010,Counselling & Advisory Costs,Nottingham,PHOENIX FUTURES,3665044,32874.00
MOJ,NOMS,19/08/2010,Contracted-out Probation Trusts,Glen Parva,LEICESTERSHIRE&RUTLAND PROBATION TRUST,3664455,33200.50
MOJ,NOMS,19/08/2010,Contracted-out Resettlement Services,NOMS CFO,MERSEYSIDE PROBATION TRUST,3639896,36366.00
MOJ,NOMS,19/08/2010,WIP - Professional Fees,Estates Capacity,FAITHFUL + GOULD,3664597,38691.05
MOJ,NOMS,19/08/2010,Contracted-out Resettlement Services,NOMS CFO,MERSEYSIDE PROBATION TRUST,3639898,41065.25
MOJ,NOMS,19/08/2010,Contracted-out Resettlement Services,NOMS CFO,MERSEYSIDE PROBATION TRUST,3639895,47739.00
MOJ,NOMS,19/08/2010,"Books, Stationery & IT Consumables",Offender Employment Skills & Services Group,CARPENTER LTD,3598012,54648.78
MOJ,NOMS,19/08/2010,WIP - Acquisitions,Estates Capacity,KIER REGIONAL LTD,3666114,68016.05
MOJ,NOMS,19/08/2010,Contract IT Maintenance,Performance Information and Analysis Group,MOUCHEL MANAGEMENT CONSULTING LIMITED,3665806,71217.00
MOJ,NOMS,19/08/2010,Contracted-out Resettlement Services,NOMS CFO,MERSEYSIDE PROBATION TRUST,3665480,72857.28
MOJ,NOMS,19/08/2010,WIP - Professional Fees,Estates Capacity,AEDAS ARCHITECTS LTD,3664550,88987.25
MOJ,NOMS,19/08/2010,Contracted-out Resettlement Services,NOMS CFO,MERSEYSIDE PROBATION TRUST,3665481,117121.27
MOJ,NOMS,19/08/2010,Professional Advice,DO NOT USE Commercial & Competitions Unit,EVERSHEDS LLP,3643112,120102.00
MOJ,NOMS,19/08/2010,Works,Shepton Mallet,IAN WILLIAMS LTD,3643844,129342.60
MOJ,NOMS,19/08/2010,WIP - Acquisitions,Estates Capacity,HENRY BOOT CONSTRUCTION (U K) LTD,3664322,150134.52
MOJ,NOMS,19/08/2010,Consultancy,Estates Capacity,PRICEWATERHOUSECOOPERS LLP,3595113,169581.88
MOJ,NOMS,19/08/2010,Contracted-out Building Maintenance,Brixton,CARILLION CONSTRUCTION LTD,3645056,179081.88
MOJ,NOMS,19/08/2010,Prison Shop Cost of Sales,Chief Operating Officers Office,EXEL EUROPE1 LTD,3663824,602793.82
MOJ,NOMS,19/08/2010,Contracted-out Probation Trusts,Lincolnshire Probation Trust,LINCOLNSHIRE PROBATION TRUST,3664491,785167.00
MOJ,NOMS,20/08/2010,Contracted-out Probation Boards,Warren Hill,SUFFOLK COUNTY COUNCIL,3667826,26998.64
MOJ,NOMS,20/08/2010,Training and Further Education Courses,Learning and Development Group,DE MONTFORT UNIVERSITY HIGHER EDUCATION CORPORATION,3664406,35048.35
MOJ,NOMS,20/08/2010,Consultancy,Organisational Development Group,P A CONSULTING SERVICES LTD,3661652,36308.24
MOJ,NOMS,20/08/2010,Contracted-out Probation Trusts,Wellingborough,NORTHAMPTONSHIRE PROBATION TRUST,3613116,40753.94
MOJ,NOMS,20/08/2010,Specialist Contractors,MOJ Shared Services NOMS Delivery,KPMG CONSULTING,3667862,56470.97
MOJ,NOMS,20/08/2010,Contracted-out Resettlement Services,NOMS CFO,LEICESTERSHIRE&RUTLAND PROBATION TRUST,3668603,87697.20
MOJ,NOMS,20/08/2010,Professional Advice,DO NOT USE Offender Assessment & Management Group,SHEFFIELD HALLAM UNIVERSITY,3655465,117034.00
MOJ,NOMS,20/08/2010,WIP - Acquisitions,Estates Capacity,HENRY BOOT CONSTRUCTION (U K) LTD,3605150,164744.48
MOJ,NOMS,20/08/2010,Contracted-out operation of prisons and detention centres,Parc,BRIDGEND CUSTODIAL SERVICES LTD,3656306,382897.00
MOJ,NOMS,23/08/2010,Training and Further Education Courses,MOJ Shared Services NOMS Delivery,NEWCASTLE COLLEGE,3629080,32609.72
MOJ,NOMS,23/08/2010,"Books, Stationery & IT Consumables",Offender Employment Skills & Services Group,CARPENTER LTD,3669751,37325.18
MOJ,NOMS,23/08/2010,Contracted-out Visitor's Centres,Holloway,PRISON ADVICE & CARE TRUST (P A C T),3651769,47073.00
MOJ,NOMS,23/08/2010,Contracted-out Probation Boards,Eastwood Park,AVON AND SOMERSET PROBATION TRUST,3669556,64744.20
MOJ,NOMS,23/08/2010,Clothing,Offender Employment Skills & Services Group,BURLINGTON UNIFORMS LTD,3638736,82757.60
MOJ,NOMS,23/08/2010,Subsistence,HOPPS Payroll Charge,CALDER CONFERENCE,3670490,90140.45
MOJ,NOMS,23/08/2010,Training Materials,Isis,X M A LTD,3648927,102828.36
MOJ,NOMS,23/08/2010,WIP - Acquisitions,Estates Capacity,KIER REGIONAL LTD,3669575,639200.00
MOJ,NOMS,24/08/2010,Water and Sewage,Featherstone,SEVERN TRENT WATER LTD,,-37376.38
MOJ,NOMS,24/08/2010,Water and Sewage,Featherstone,SEVERN TRENT WATER LTD,,-30976.36
MOJ,NOMS,24/08/2010,Water and Sewage,Ranby,ANGLIAN WATER SERVICES LTD,3672151,25283.95
MOJ,NOMS,24/08/2010,Electricity,Wakefield,EDF ENERGY,3651628,26964.36
MOJ,NOMS,24/08/2010,Specialist Contractors,Estates Capacity,CENTRAL OFFICE OF INFORMATION,3642380,29610.00
MOJ,NOMS,24/08/2010,Training and Further Education Courses,MOJ Shared Services NOMS Delivery,NEWCASTLE COLLEGE,3646077,31868.59
MOJ,NOMS,24/08/2010,Electricity,Ranby,EDF ENERGY,3651567,31987.23
MOJ,NOMS,24/08/2010,Electricity,Isis,EDF ENERGY,3672190,33737.14
MOJ,NOMS,24/08/2010,Contracted-out Resettlement Services,NOMS CFO,LEICESTERSHIRE&RUTLAND PROBATION TRUST,3668601,35540.52
MOJ,NOMS,24/08/2010,Legal Representation,Estates Capacity,EVERSHEDS LLP,3660187,40984.00
MOJ,NOMS,24/08/2010,Specialist Contractors,Estates Capacity,LAMBERT SMITH HAMPTON GROUP LTD,3644651,41027.30
MOJ,NOMS,24/08/2010,Travel - Non-Taxable,HOPPS Payroll Charge,CARLSON WAGONLIT TRAVEL,3672243,44257.73
MOJ,NOMS,24/08/2010,Raw Materials Issued,Offender Employment Skills & Services Group,L & P (PSCS),3647699,44506.94
MOJ,NOMS,24/08/2010,Specialist Contractors,NOMS ICT,ADVANTAGE TECHNICAL RESOURCING,3651093,54575.74
MOJ,NOMS,24/08/2010,Water and Sewage,Featherstone,SEVERN TRENT WATER LTD,3655668,118099.17
MOJ,NOMS,24/08/2010,Contracted-out Escorts,Prisoner Escort & Custody Service (PECS),RELIANCE SECURE TASK MANAGEMENT,3652822,253272.67
MOJ,NOMS,24/08/2010,Contracted-out Escorts,Prisoner Escort & Custody Service (PECS),RELIANCE SECURE TASK MANAGEMENT,3652823,1061350.58
MOJ,NOMS,24/08/2010,Contracted-out Probation Trusts,Humberside Probation Trust,HUMBERSIDE PROBATION TRUST,3649386,1556488.17
MOJ,NOMS,24/08/2010,Contracted-out Escorts,Prisoner Escort & Custody Service (PECS),RELIANCE SECURE TASK MANAGEMENT,3652965,1951224.92
MOJ,NOMS,24/08/2010,Legal Representation,Estates Capacity,EVERSHEDS LLP,3660187,40984.00
MOJ,NOMS,25/08/2010,Clothing,Offender Employment Skills & Services Group,P & R FABRICS LTD,3673947,27981.45
MOJ,NOMS,25/08/2010,Contracted-out Probation Trusts,Preston,LANCASHIRE PROBATION TRUST,3580342,33974.94
MOJ,NOMS,25/08/2010,WIP - Professional Fees,Estates Capacity,TURNER & TOWNSEND,3673655,35435.94
MOJ,NOMS,25/08/2010,Clothing,Offender Employment Skills & Services Group,ST JAMES FABRICS (LEICESTER) LTD,3672890,36766.15
MOJ,NOMS,25/08/2010,Counselling & Advisory Costs,Birmingham,SOUTH STAFFORDSHIRE AND SHROPSHIRE HEALTHCARE NHS FOUNDATION TRUST,3644521,37151.00
MOJ,NOMS,25/08/2010,In Cell TV Costs,Unallocated Budgets,COMPUTACENTER (U K) LTD,3588400,50191.91
MOJ,NOMS,25/08/2010,Contracted-out Resettlement Services,NOMS CFO,SOVA,3655122,64101.54
MOJ,NOMS,25/08/2010,Contracted-out Computer Services,NOMIS Programme,SAP (UK) LTD,3672800,80127.50
MOJ,NOMS,25/08/2010,WIP - Professional Fees,Estates Capacity,JACOBS ENGINEERING UK,3672519,87518.99
MOJ,NOMS,25/08/2010,Occupational Health Services,MOJ Project & ATOS,ATOS ORIGIN IT SERVICES UK LTD,3673116,116090.70
MOJ,NOMS,25/08/2010,Contracted-out Medical services,Whitemoor,CAMBRIDGESHIRE & PETERBOROUGH MENTAL HEALTH PARTNERSHIP,3643031,129471.60
MOJ,NOMS,25/08/2010,Prison Shop Cost of Sales (No VAT),Chief Operating Officers Office,EXEL EUROPE1 LTD,3672885,183700.54
MOJ,NOMS,25/08/2010,Prison Shop Cost of Sales,Chief Operating Officers Office,EXEL EUROPE1 LTD,3672885,328613.03
MOJ,NOMS,26/08/2010,WIP - Acquisitions,MoJ ICT,HP ENTERPRISE SERVICES UK LTD,3674852,-118778.64
MOJ,NOMS,26/08/2010,Other Fuels,Chelmsford,COFATHEC ENERGY SERVICES UK LTD,,-40538.51
MOJ,NOMS,26/08/2010,Contracted-out operation of prisons and detention centres,Rye Hill,ONLEY PRISON SERVICES LTD,3622310,-37684.91
MOJ,NOMS,26/08/2010,WIP - Acquisitions,MoJ ICT,HP ENTERPRISE SERVICES UK LTD,3660138,-28544.18
MOJ,NOMS,26/08/2010,Counselling & Advisory Costs,Liverpool,LIFELINE PROJECT,3672626,27035.58
MOJ,NOMS,26/08/2010,Clothing,Offender Employment Skills & Services Group,JIANGSU SAINTY CORP LTD,3675059,28800.00
MOJ,NOMS,26/08/2010,WIP - Professional Fees,Estates Capacity,JACOBS ENGINEERING UK,3672513,28820.64
MOJ,NOMS,26/08/2010,Counselling & Advisory Costs,Liverpool,LIFELINE PROJECT,3642974,29416.00
MOJ,NOMS,26/08/2010,Counselling & Advisory Costs,Liverpool,LIFELINE PROJECT,3642981,29416.00
MOJ,NOMS,26/08/2010,Counselling & Advisory Costs,Styal,LIFELINE PROJECT,3673471,30649.77
MOJ,NOMS,26/08/2010,Contracted-out Computer Services,Quantum,HP ENTERPRISE SERVICES UK LTD,3660141,31692.00
MOJ,NOMS,26/08/2010,Contracted-out Computer Services,Quantum,HP ENTERPRISE SERVICES UK LTD,3675054,31692.00
MOJ,NOMS,26/08/2010,Counselling & Advisory Costs,Styal,LIFELINE PROJECT,3673470,33065.92
MOJ,NOMS,26/08/2010,Contracted-out Computer Services,Quantum,HP ENTERPRISE SERVICES UK LTD,3675055,33813.70
MOJ,NOMS,26/08/2010,Contracted-out Probation Trusts,Liverpool,MERSEYSIDE PROBATION TRUST,3639137,35379.50
MOJ,NOMS,26/08/2010,Contracted-out Visitor's Centres,Belmarsh,PRISON ADVICE & CARE TRUST (P A C T),3651770,37750.00
MOJ,NOMS,26/08/2010,Contracted-out Computer Services,Quantum,HP ENTERPRISE SERVICES UK LTD,3660258,38852.00
MOJ,NOMS,26/08/2010,Clothing,Offender Employment Skills & Services Group,JIANGSU SAINTY CORP LTD,3675064,42421.20
MOJ,NOMS,26/08/2010,Contracted-out Computer Services,Quantum,HP ENTERPRISE SERVICES UK LTD,3675060,48094.17
MOJ,NOMS,26/08/2010,Contracted-out Computer Services,Quantum,HP ENTERPRISE SERVICES UK LTD,3675021,48094.17
MOJ,NOMS,26/08/2010,WIP - Professional Fees,Estates Capacity,AEDAS ARCHITECTS LTD,3608454,48262.61
MOJ,NOMS,26/08/2010,WIP - Professional Fees,Estates Capacity,AEDAS ARCHITECTS LTD,3565794,48268.32
MOJ,NOMS,26/08/2010,Contract IT Maintenance,Procurement Group,HP ENTERPRISE SERVICES UK LTD,3643066,58114.33
MOJ,NOMS,26/08/2010,Subsistence,HOPPS Payroll Charge,CALDER CONFERENCE,3675061,59461.98
MOJ,NOMS,26/08/2010,Clothing,Offender Employment Skills & Services Group,JIANGSU SAINTY CORP LTD,3675024,63000.00
MOJ,NOMS,26/08/2010,WIP - Professional Fees,Estates Capacity,JACOBS ENGINEERING UK,3672515,103241.40
MOJ,NOMS,26/08/2010,Contracted-out Medical services,Whitemoor,CAMBRIDGESHIRE & PETERBOROUGH MENTAL HEALTH PARTNERSHIP,3674494,128231.66
MOJ,NOMS,26/08/2010,Contracted-out Computer Services,Quantum,HP ENTERPRISE SERVICES UK LTD,3675063,138011.77
MOJ,NOMS,26/08/2010,WIP - Acquisitions,MoJ ICT,HP ENTERPRISE SERVICES UK LTD,3651590,145930.87
MOJ,NOMS,26/08/2010,Contracted-out Other Services,Quantum,HP ENTERPRISE SERVICES UK LTD,3675058,147500.58
MOJ,NOMS,26/08/2010,Counselling & Advisory Costs,ROM - Yorkshire & Humberside,LIFELINE PROJECT,3672565,171545.29
MOJ,NOMS,26/08/2010,Contracted-out Other Services,Quantum,HP ENTERPRISE SERVICES UK LTD,3675006,184293.25
MOJ,NOMS,26/08/2010,External Telecom Charges,Business and Strategic Planning,HOME OFFICE,3671936,215285.16
MOJ,NOMS,26/08/2010,Contracted-out Computer Services,Quantum,HP ENTERPRISE SERVICES UK LTD,3675032,268624.00
MOJ,NOMS,26/08/2010,Contracted-out Probation Trusts,Leicestershire Probation Trust,LEICESTERSHIRE&RUTLAND PROBATION TRUST,3664931,1200851.00
MOJ,NOMS,26/08/2010,Contract IT Maintenance,NOMS ICT,HP ENTERPRISE SERVICES UK LTD,3621457,1833305.19
MOJ,NOMS,27/08/2010,WIP - Acquisitions,Estates Capacity,WATES CONSTRUCTION LTD,,-342725.22
MOJ,NOMS,27/08/2010,WIP - Acquisitions,Estates Capacity,WATES CONSTRUCTION LTD,,-196347.20
MOJ,NOMS,27/08/2010,WIP - Acquisitions,Estates Capacity,WATES CONSTRUCTION LTD,,-88774.78
MOJ,NOMS,27/08/2010,Clothing,Offender Employment Skills & Services Group,JIANGSU SAINTY CORP LTD,3676455,29400.00
MOJ,NOMS,27/08/2010,WIP - Professional Fees,Estates Capacity,WT PARTNERSHIP,3675289,31350.82
MOJ,NOMS,27/08/2010,Training and Further Education Courses,Learning and Development Group,UNIVERSITY OF PORTSMOUTH,3675391,54397.28
MOJ,NOMS,27/08/2010,WIP - Professional Fees,Estates Capacity,WT PARTNERSHIP,3644036,66269.21
MOJ,NOMS,27/08/2010,WIP - Professional Fees,Estates Capacity,AEDAS ARCHITECTS LTD,3635160,69511.04
MOJ,NOMS,27/08/2010,Rates and Ground Rents,Estates Capacity,TORFAEN COUNTY BOROUGH COUNCIL,3630180,77710.00
MOJ,NOMS,27/08/2010,Rates and Ground Rents,Estates Capacity,NORTH KESTEVEN DISTRICT COUNCIL,3472366,82819.96
MOJ,NOMS,27/08/2010,WIP - Acquisitions,Estates Capacity,WATES CONSTRUCTION LTD,3676312,88774.78
MOJ,NOMS,27/08/2010,WIP - Acquisitions,Estates Capacity,WATES CONSTRUCTION LTD,3615889,92611.15
MOJ,NOMS,27/08/2010,Office Equipment Purchases Under 10k,DO NOT USE Offender Assessment & Management Group,CABLE AND WIRELESS,3676413,106485.55
MOJ,NOMS,27/08/2010,WIP - Acquisitions,Estates Capacity,WATES CONSTRUCTION LTD,3676313,196347.20
MOJ,NOMS,27/08/2010,Accruals - Goods & services,Derbyshire Probation Trust,DERBYSHIRE PROBATION TRUST,3655936,300000.00
MOJ,NOMS,27/08/2010,WIP - Acquisitions,Estates Capacity,WATES CONSTRUCTION LTD,3676311,342725.22
MOJ,NOMS,27/08/2010,WIP - Acquisitions,Estates Capacity,WILLMOTT DIXON CONSTRUCTION LTD,3661510,556508.41
MOJ,NOMS,31/08/2010,WIP - Professional Fees,Estates Capacity,JACOBS ENGINEERING UK,3677396,25333.00
MOJ,NOMS,31/08/2010,Contracted-out Computer Services,Chief Operating Officers Office,HP ENTERPRISE SERVICES UK LTD,3675566,28355.42
MOJ,NOMS,31/08/2010,Training and Further Education Courses,Learning and Development Group,U.W.C.N,3675676,29727.50
MOJ,NOMS,31/08/2010,Contract IT Maintenance,MoJ ICT,HP ENTERPRISE SERVICES UK LTD,3676015,43698.38
MOJ,NOMS,31/08/2010,WIP - Professional Fees,Estates Capacity,AEDAS ARCHITECTS LTD,3677379,48266.90
MOJ,NOMS,31/08/2010,"Prisoner Compensation over 5,000",Chief Operating Officers Office,TREASURY SOLICITORS,3678479,53500.00
MOJ,NOMS,31/08/2010,WIP - Acquisitions,MoJ ICT,HP ENTERPRISE SERVICES UK LTD,3677983,54036.92
MOJ,NOMS,31/08/2010,Contract IT Maintenance,MoJ ICT,HP ENTERPRISE SERVICES UK LTD,3675786,54340.07
MOJ,NOMS,31/08/2010,Contracted-out Computer Services,Quantum,HP ENTERPRISE SERVICES UK LTD,3674517,58831.21
MOJ,NOMS,31/08/2010,Miscellaneous,Chief Operating Officers Office,NPIA,3678471,64120.77
MOJ,NOMS,31/08/2010,WIP - Acquisitions,MoJ ICT,HP ENTERPRISE SERVICES UK LTD,3677982,66310.02
MOJ,NOMS,31/08/2010,Contracted-out Probation Boards,Cardiff,WALES PROBATION TRUST,3678341,67551.96
MOJ,NOMS,31/08/2010,Contract IT Maintenance,Learning and Development Group,HP ENTERPRISE SERVICES UK LTD,3678290,103294.04
MOJ,NOMS,31/08/2010,WIP - Acquisitions,Estates Capacity,MORRISON CONSTRUCTION SERVICES LTD,3677524,143822.54
MOJ,NOMS,31/08/2010,Contract IT Maintenance,MoJ ICT,MINISTRY OF JUSTICE,3677891,214152.93
MOJ,NOMS,31/08/2010,Contract IT Maintenance,MOJ Project & ATOS,HP ENTERPRISE SERVICES UK LTD,3678290,354143.38
MOJ,NOMS,31/08/2010,Training and Further Education Courses,Business Change Group,HP ENTERPRISE SERVICES UK LTD,3578454,678267.41
MOJ,NOMS,31/08/2010,Contract IT Maintenance,MOJ Shared Services NOMS Delivery,HP ENTERPRISE SERVICES UK LTD,3678290,920540.45
MOJ,NOMS,31/08/2010,Contract IT Maintenance,MoJ ICT,HP ENTERPRISE SERVICES UK LTD,3645030,921149.68
MOJ,NOMS,31/08/2010,Contracted-out Probation Trusts,Norfolk & Suffolk Probation Trust,NORFOLK AND SUFFOLK PROBATION TRUST,3677991,1679458.71
